fUST/lending_fUST_20240713
["ID","MTS","AMOUNT","RATE_DAILY","PERIOD"]
[331905316,1720825848585,-812.22,0.00025753,2]
[331905317,1720825848595,-500.0,0.00025753,2]
[331905318,1720825848605,-500.0,0.00025753,2]
[331905319,1720825848741,-1109.4,0.00025753,2]
[331905320,1720825848751,-500.0,0.00025753,2]
[331905321,1720825848762,-500.0,0.00025753,2]
[331905322,1720825848772,-500.0,0.00025753,2]
[331905323,1720825848783,-500.0,0.00025753,2]
[331905324,1720825848793,-322.92757389,0.00025753,2]
[331905325,1720825848803,-500.0,0.00025753,2]
[331905326,1720825848812,-549.5273123,0.00025753,2]
[331905327,1720825848821,-500.0,0.00025753,2]
[331905328,1720825848831,-500.0,0.00025753,2]
[331905329,1720825848840,-500.0,0.00025753,2]
[331905330,1720825848849,-500.0,0.00025753,2]
[331905331,1720825848859,-500.0,0.00025753,2]
[331905332,1720825848868,-500.0,0.00025753,2]
[331905333,1720825848877,-500.0,0.00025753,2]
[331905334,1720825848888,-500.0,0.00025753,2]
[331905335,1720825848897,-500.0,0.00025753,2]
[331905336,1720825848907,-1888.33,0.00025753,2]
[331905337,1720825848917,-500.0,0.00025753,2]
[331905338,1720825848927,-500.0,0.00025753,2]
[331905339,1720825848937,-601.67,0.00025753,2]
[331905340,1720825848946,-344.52118819,0.00025753,2]
[331905341,1720825848956,-150.26815741,0.00025753,2]
[331905342,1720825848965,-197.97576251,0.00025753,2]
[331905343,1720825848976,-500.0,0.00025753,2]
[331905344,1720825848986,-500.0,0.00025753,2]
[331905345,1720825848997,-500.0,0.00025753,2]
[331905346,1720825849007,-500.0,0.00025753,2]
[331905347,1720825849017,-500.0,0.00025753,2]
[331905348,1720825849027,-500.0,0.00025753,2]
[331905349,1720825849038,-500.0,0.00025753,2]
[331905350,1720825849059,-500.0,0.00025753,2]
[331905351,1720825849069,-500.0,0.00025753,2]
[331905352,1720825849079,-500.0,0.00025753,2]
[331905353,1720825849090,-500.0,0.00025753,2]
[331905354,1720825849100,-500.0,0.00025753,2]
[331905355,1720825849110,-500.0,0.00025753,2]
[331905356,1720825849120,-500.0,0.00025753,2]
[331905357,1720825849130,-518.07,0.00025753,2]
[331905358,1720825849140,-500.0,0.00025753,2]
[331905359,1720825849150,-500.0,0.00025753,2]
[331905360,1720825849160,-500.0,0.00025753,2]
[331905361,1720825849170,-500.0,0.00025753,2]
[331905362,1720825849180,-500.0,0.00025753,2]
[331905363,1720825849190,-837.23,0.00025753,2]
[331905364,1720825849199,-500.0,0.00025753,2]
[331905365,1720825849209,-807.98,0.00025753,2]
[331905366,1720825849220,-500.0,0.00025753,2]
[331905367,1720825849230,-290.03134183,0.00025753,2]
[331905368,1720825849240,-500.0,0.00025753,2]
[331905369,1720825849250,-500.0,0.00025753,2]
[331905370,1720825849262,-500.0,0.00025753,2]
[331905371,1720825849271,-500.0,0.00025753,2]
[331905372,1720825849281,-520.79,0.00025753,2]
[331905373,1720825849292,-500.0,0.00025753,2]
[331905374,1720825849302,-455.76138103,0.00025753,2]
[331905375,1720825849312,-500.0,0.00025753,2]
[331905376,1720825849322,-2287.63,0.00025753,2]
[331905377,1720825849332,-500.0,0.00025753,2]
[331905378,1720825849342,-500.0,0.00025753,2]
[331905379,1720825849352,-500.0,0.00025753,2]
[331905380,1720825849362,-28518.43,0.00025753,2]
[331905381,1720825849372,-500.0,0.00025753,2]
[331905382,1720825849382,-500.0,0.00025753,2]
[331905383,1720825849393,-500.0,0.00025753,2]
[331905384,1720825849403,-500.0,0.00025753,2]
[331905385,1720825849413,-500.0,0.00025753,2]
[331905386,1720825849423,-500.0,0.00025753,2]
[331905387,1720825849433,-500.0,0.00025753,2]
[331905388,1720825849443,-3804.15,0.00025753,2]
[331905389,1720825849453,-500.0,0.00025753,2]
[331905390,1720825849463,-500.0,0.00025753,2]
[331905391,1720825849473,-500.0,0.00025753,2]
[331905392,1720825849483,-500.0,0.00025753,2]
[331905393,1720825849492,-500.0,0.00025753,2]
[331905394,1720825849502,-500.0,0.00025753,2]
[331905395,1720825849511,-500.0,0.00025753,2]
[331905396,1720825849521,-541.49,0.00025753,2]
[331905397,1720825849531,-151.0,0.00025753,7]
[331905398,1720825849542,-500.0,0.00025753,2]
[331905399,1720825849552,-150.42453828,0.00025756,2]
[331905400,1720825849561,-153.79107762,0.00025857,2]
[331905401,1720825849571,-210.68826157,0.00025902,2]
[331905402,1720825849582,-205.53042343,0.00025914,2]
[331905403,1720825849592,-150.0,0.00025944,2]
[331905404,1720825849601,-150.79426912,0.00025952,2]
[331905405,1720825849611,-205.53042343,0.00025979,2]
[331905406,1720825849621,-3072.81564404,0.00026017,3]
[331905407,1720825849634,-1674.7,0.00026026,2]
[331905408,1720825849643,-1674.7,0.00026026,2]
[331905409,1720825849654,-500.0,0.00026027,2]
[331905410,1720825849664,-500.0,0.00026027,2]
[331905411,1720825849673,-187.88935346,0.00026027,2]
[331905412,1720825849683,-500.0,0.00026027,2]
[331905413,1720825849693,-500.0,0.00026027,2]
[331905414,1720825849704,-570.37074582,0.00026027,2]
[331905415,1720825849714,-388.87625302,0.00026027,2]
[331905416,1720825849723,-500.0,0.00026027,2]
[331905417,1720825849733,-500.0,0.00026027,2]
[331905418,1720825849743,-500.0,0.00026027,2]
[331905419,1720825849753,-697.74,0.00026027,2]
[331905420,1720825849764,-500.0,0.00026027,2]
[331905421,1720825849774,-500.0,0.00026027,2]
[331905422,1720825849784,-500.0,0.00026027,2]
[331905423,1720825849794,-508.3,0.00026027,2]
[331905424,1720825849803,-500.0,0.00026027,2]
[331905425,1720825849813,-843.63,0.00026027,2]
[331905426,1720825849824,-500.0,0.00026027,2]
[331905427,1720825849833,-291.62865583,0.00026027,2]
[331905428,1720825849843,-500.0,0.00026027,2]
[331905429,1720825849852,-500.0,0.00026027,2]
[331905430,1720825849862,-500.0,0.00026027,2]
[331905431,1720825849871,-500.0,0.00026027,2]
[331905432,1720825849881,-500.0,0.00026027,2]
[331905433,1720825849893,-500.0,0.00026027,2]
[331905434,1720825849903,-500.0,0.00026027,2]
[331905435,1720825849913,-500.0,0.00026027,2]
[331905436,1720825849923,-500.0,0.00026027,2]
[331905437,1720825849932,-500.0,0.00026027,2]
[331905438,1720825849942,-500.0,0.00026027,2]
[331905439,1720825849951,-500.0,0.00026027,2]
[331905440,1720825849961,-500.0,0.00026027,2]
[331905441,1720825849970,-500.0,0.00026027,2]
[331905442,1720825849980,-500.0,0.00026027,2]
[331905443,1720825849989,-500.0,0.00026027,2]
[331905444,1720825849999,-602.06,0.00026027,2]
[331905445,1720825850008,-500.0,0.00026027,2]
[331905446,1720825850017,-500.0,0.00026027,2]
[331905447,1720825850027,-500.0,0.00026027,2]
[331905448,1720825850037,-500.0,0.00026027,2]
[331905449,1720825850046,-500.0,0.00026027,2]
[331905450,1720825850056,-812.22,0.00026027,2]
[331905451,1720825850065,-500.0,0.00026027,2]
[331905452,1720825850075,-500.0,0.00026027,2]
[331905453,1720825850085,-1109.4,0.00026027,2]
[331905454,1720825850095,-500.0,0.00026027,2]
[331905455,1720825850107,-500.0,0.00026027,2]
[331905456,1720825850116,-236.9472057,0.00026027,2]
[331905457,1720825850126,-205.04541481,0.00026027,2]
[331905458,1720825850136,-500.0,0.00026027,2]
[331905459,1720825850147,-500.0,0.00026027,2]
[331905460,1720825850159,-500.0,0.00026027,2]
[331905461,1720825850170,-500.0,0.00026027,2]
[331905462,1720825850182,-151.0,0.00026027,7]
[331905463,1720825850192,-500.0,0.00026027,2]
[331905464,1720825850203,-151.0,0.00026027,7]
[331905465,1720825850213,-408.19251566,0.00026027,2]
[331905466,1720825850224,-500.0,0.00026027,2]
[331905467,1720825850234,-500.0,0.00026027,2]
[331905468,1720825850244,-500.0,0.00026027,2]
[331905469,1720825850254,-500.0,0.00026027,2]
[331905470,1720825850270,-1888.33,0.00026027,2]
[331905471,1720825850286,-500.0,0.00026027,2]
[331905472,1720825850300,-201.01837567,0.00026027,2]
[331905473,1720825850314,-601.67,0.00026027,2]
[331905474,1720825850329,-500.0,0.00026027,2]
[331905475,1720825850345,-500.0,0.00026027,2]
[331905476,1720825850356,-500.0,0.00026027,2]
[331905477,1720825850368,-500.0,0.00026027,2]
[331905478,1720825850381,-500.0,0.00026027,2]
[331905479,1720825850394,-500.0,0.00026027,2]
[331905480,1720825850406,-500.0,0.00026027,2]
[331905481,1720825850419,-500.0,0.00026027,2]
[331905482,1720825850432,-500.0,0.00026027,2]
[331905483,1720825850445,-500.0,0.00026027,2]
[331905484,1720825850457,-500.0,0.00026027,2]
[331905485,1720825850471,-500.0,0.00026027,2]
[331905486,1720825850485,-518.07,0.00026027,2]
[331905487,1720825850499,-500.0,0.00026027,2]
[331905488,1720825850510,-500.0,0.00026027,2]
[331905489,1720825850523,-161.656779,0.00026027,7]
[331905490,1720825850536,-500.0,0.00026027,2]
[331905491,1720825850547,-500.0,0.00026027,2]
[331905492,1720825850559,-596.04335444,0.00026027,2]
[331905493,1720825850572,-837.23,0.00026027,2]
[331905494,1720825850585,-151.0,0.00026027,7]
[331905495,1720825850598,-500.0,0.00026027,2]
[331905496,1720825850609,-270.363198,0.00026027,7]
[331905497,1720825850622,-151.0,0.00026027,7]
[331905498,1720825850636,-807.98,0.00026027,2]
[331905499,1720825850647,-500.0,0.00026027,2]
[331905500,1720825850659,-393.41225289,0.00026027,2]
[331905501,1720825850672,-500.0,0.00026027,2]
[331905502,1720825850683,-500.0,0.00026027,2]
[331905503,1720825850698,-500.0,0.00026027,2]
[331905504,1720825850710,-520.79,0.00026027,2]
[331905505,1720825850723,-500.0,0.00026027,2]
[331905506,1720825850736,-151.0,0.00026027,7]
[331905507,1720825850748,-500.0,0.00026027,2]
[331905508,1720825850761,-2287.63,0.00026027,2]
[331905509,1720825850774,-500.0,0.00026027,2]
[331905510,1720825850787,-422.1418869,0.00026027,2]
[331905511,1720825850799,-500.0,0.00026027,2]
[331905512,1720825850811,-28518.43,0.00026027,2]
[331905513,1720825850823,-500.0,0.00026027,2]
[331905514,1720825850833,-500.0,0.00026027,2]
[331905515,1720825850843,-500.0,0.00026027,2]
[331905516,1720825850854,-500.0,0.00026027,2]
[331905517,1720825850866,-500.0,0.00026027,2]
[331905518,1720825850878,-500.0,0.00026027,2]
[331905519,1720825850891,-151.0,0.00026027,7]
[331905520,1720825850903,-500.0,0.00026027,2]
[331905521,1720825850916,-3804.15,0.00026027,2]
[331905522,1720825850927,-151.0,0.00026027,7]
[331905523,1720825850938,-500.0,0.00026027,2]
[331905524,1720825850953,-500.0,0.00026027,2]
[331905525,1720825850964,-500.0,0.00026027,2]
[331905526,1720825850976,-500.0,0.00026027,2]
[331905527,1720825850988,-500.0,0.00026027,2]
[331905528,1720825851000,-261.815616,0.00026027,7]
[331905529,1720825851011,-500.0,0.00026027,2]
[331905530,1720825851022,-261.815616,0.00026027,7]
[331905531,1720825851033,-500.0,0.00026027,2]
[331905532,1720825851044,-151.0,0.0002608,2]
[331905533,1720825851057,-151.0,0.0002608,2]
[331905534,1720825851068,-154.59445059,0.00026087,2]
[331905535,1720825851079,-154.59445059,0.00026119,2]
[331905536,1720825851090,-153.29155785,0.00026124,2]
[331905537,1720825851102,-167.21919922,0.00026173,2]
[331905538,1720825851114,-154.59445059,0.00026188,2]
[331905539,1720825851125,-530.40352659,0.00026225,2]
[331905540,1720825851138,-150.79426912,0.00026239,2]
[331905541,1720825851150,-3072.81564404,0.00026291,3]
[331905542,1720825851162,-1674.7,0.000263,2]
[331905543,1720825851173,-1674.7,0.000263,2]
[331905544,1720825851185,-153.0,0.00026301,2]
[331905545,1720825851197,-153.0,0.00026301,2]
[331905546,1720825851208,-153.0,0.00026301,2]
[331905547,1720825851220,-153.0,0.00026301,2]
[331905548,1720825851232,-153.0,0.00026301,2]
[331905549,1720825851243,-500.0,0.00026301,2]
[331905550,1720825851254,-500.0,0.00026301,2]
[331905551,1720825851265,-500.0,0.00026301,2]
[331905552,1720825851276,-500.0,0.00026301,2]
[331905553,1720825851289,-500.0,0.00026301,2]
[331905554,1720825851300,-500.0,0.00026301,2]
[331905555,1720825851314,-500.0,0.00026301,2]
[331905556,1720825851324,-500.0,0.00026301,2]
[331905557,1720825851335,-500.0,0.00026301,2]
[331905558,1720825851345,-500.0,0.00026301,2]
[331905559,1720825851357,-508.3,0.00026301,2]
[331905560,1720825851368,-500.0,0.00026301,2]
[331905561,1720825851380,-843.63,0.00026301,2]
[331905562,1720825851391,-500.0,0.00026301,2]
[331905563,1720825851403,-500.0,0.00026301,2]
[331905564,1720825851415,-500.0,0.00026301,2]
[331905565,1720825851427,-500.0,0.00026301,2]
[331905566,1720825851438,-500.0,0.00026301,2]
[331905567,1720825851449,-500.0,0.00026301,2]
[331905568,1720825851459,-500.0,0.00026301,2]
[331905569,1720825851471,-360.45963862,0.00026301,2]
[331905570,1720825851483,-500.0,0.00026301,2]
[331905571,1720825851496,-500.0,0.00026301,2]
[331905572,1720825851506,-500.0,0.00026301,2]
[331905573,1720825851518,-312.04735153,0.00026301,2]
[331905574,1720825851530,-500.0,0.00026301,2]
[331905575,1720825851541,-151.0,0.00026301,7]
[331905576,1720825851553,-151.0,0.00026301,7]
[331905577,1720825851564,-500.0,0.00026301,2]
[331905578,1720825851574,-500.0,0.00026301,2]
[331905579,1720825851585,-500.0,0.00026301,2]
[331905580,1720825851596,-500.0,0.00026301,2]
[331905581,1720825851607,-602.06,0.00026301,2]
[331905582,1720825851618,-500.0,0.00026301,2]
[331905583,1720825851633,-500.0,0.00026301,2]
[331905584,1720825851646,-575.08586764,0.00026301,2]
[331905585,1720825851656,-500.0,0.00026301,2]
[331905586,1720825851670,-500.0,0.00026301,2]
[331905587,1720825851683,-812.22,0.00026301,2]
[331905588,1720825851697,-500.0,0.00026301,2]
[331905589,1720825851710,-307.59133802,0.00026301,2]
[331905590,1720825851721,-1109.4,0.00026301,2]
[331905591,1720825851733,-500.0,0.00026301,2]
[331905592,1720825851743,-579.80485976,0.00026301,2]
[331905593,1720825851754,-500.0,0.00026301,2]
[331905594,1720825851765,-500.0,0.00026301,2]
[331905595,1720825851775,-500.0,0.00026301,2]
[331905596,1720825851786,-500.0,0.00026301,2]
[331905597,1720825851796,-500.0,0.00026301,2]
[331905598,1720825851808,-500.0,0.00026301,2]
[331905599,1720825851819,-278.92389086,0.00026301,2]
[331905600,1720825851830,-500.0,0.00026301,2]
[331905601,1720825851840,-500.0,0.00026301,2]
[331905602,1720825851851,-1888.33,0.00026301,2]
[331905603,1720825851862,-500.0,0.00026301,2]
[331905604,1720825851874,-601.67,0.00026301,2]
[331905605,1720825851885,-500.0,0.00026301,2]
[331905606,1720825851896,-500.0,0.00026301,2]
[331905607,1720825851907,-635.07677275,0.00026301,2]
[331905608,1720825851918,-500.0,0.00026301,2]
[331905609,1720825851930,-500.0,0.00026301,2]
[331905610,1720825851941,-500.0,0.00026301,2]
[331905611,1720825851952,-500.0,0.00026301,2]
[331905612,1720825851962,-500.0,0.00026301,2]
[331905613,1720825851973,-221.91,0.00026301,2]
[331905614,1720825851985,-500.0,0.00026301,2]
[331905615,1720825851995,-500.0,0.00026301,2]
[331905616,1720825852006,-352.39395325,0.00026301,2]
[331905617,1720825852017,-518.07,0.00026301,2]
[331905618,1720825852029,-500.0,0.00026301,2]
[331905619,1720825852040,-500.0,0.00026301,2]
[331905620,1720825852210,-500.0,0.00026301,2]
[331905621,1720825852220,-500.0,0.00026301,2]
[331905622,1720825852229,-837.23,0.00026301,2]
[331905623,1720825852239,-528.83882499,0.00026301,2]
[331905624,1720825852249,-807.98,0.00026301,2]
[331905625,1720825852258,-500.0,0.00026301,2]
[331905626,1720825852268,-500.0,0.00026301,2]
[331905627,1720825852278,-201.05189818,0.00026301,2]
[331905628,1720825852289,-500.0,0.00026301,2]
[331905629,1720825852298,-520.79,0.00026301,2]
[331905630,1720825852308,-500.0,0.00026301,2]
[331905631,1720825852318,-151.0,0.00026301,7]
[331905632,1720825852328,-515.11881733,0.00026301,2]
[331905633,1720825852337,-2287.63,0.00026301,2]
[331905634,1720825852347,-500.0,0.00026301,2]
[331905635,1720825852356,-500.0,0.00026301,2]
[331905636,1720825852367,-28518.43,0.00026301,2]
[331905637,1720825852378,-500.0,0.00026301,2]
[331905638,1720825852387,-500.0,0.00026301,2]
[331905639,1720825852397,-500.0,0.00026301,2]
[331905640,1720825852407,-500.0,0.00026301,2]
[331905641,1720825852417,-500.0,0.00026301,2]
[331905642,1720825852427,-500.0,0.00026301,2]
[331905643,1720825852437,-237.260331,0.00026301,7]
[331905644,1720825852446,-500.0,0.00026301,2]
[331905645,1720825852455,-3804.15,0.00026301,2]
[331905646,1720825852465,-500.0,0.00026301,2]
[331905647,1720825852475,-500.0,0.00026301,2]
[331905648,1720825852485,-500.0,0.00026301,2]
[331905649,1720825852494,-464.04139534,0.00026301,2]
[331905650,1720825852504,-500.0,0.00026301,2]
[331905651,1720825852514,-261.815616,0.00026301,7]
[331905652,1720825852523,-500.0,0.00026301,2]
[331905653,1720825852533,-261.815616,0.00026301,7]
[331905654,1720825852543,-500.0,0.00026301,2]
[331905655,1720825852553,-151.0,0.00026301,7]
[331905656,1720825852562,-152.71751146,0.0002634,2]
[331905657,1720825852571,-151.0,0.00026347,2]
[331905658,1720825852581,-151.0,0.00026347,2]
[331905659,1720825852591,-153.79107762,0.0002635,2]
[331905660,1720825852600,-4200.0,0.00026375,2]
[331905661,1720825852610,-659.31259948,0.00026408,2]
[331905662,1720825852622,-157.95591486,0.00026421,2]
[331905663,1720825852633,-153.29155785,0.00026483,2]
[331905664,1720825852643,-3000.0,0.000265,2]
[331905665,1720825852652,-2000.0,0.00026501,2]
[331905666,1720825852663,-3000.0,0.0002651,2]
[331905667,1720825852673,-2000.0,0.0002651,2]
[331905668,1720825852682,-3000.0,0.0002652,2]
[331905669,1720825852692,-205.53042343,0.00026522,2]
[331905670,1720825852703,-3000.0,0.0002653,2]
[331905671,1720825852714,-3000.0,0.0002654,2]
[331905672,1720825852723,-3000.0,0.0002655,2]
[331905673,1720825852733,-151.0,0.0002655,7]
[331905674,1720825852743,-151.0,0.0002655,7]
[331905675,1720825852753,-1536.40782202,0.00026555,3]
[331905676,1720825852762,-3000.0,0.0002656,2]
[331905677,1720825852772,-1536.40782202,0.00026565,3]
[331905678,1720825852782,-3000.0,0.0002657,2]
[331905679,1720825852792,-1674.7,0.00026574,2]
[331905680,1720825852802,-1674.7,0.00026574,2]
[331905681,1720825852811,-330.17656722,0.00026574,2]
[331905682,1720825852822,-500.0,0.00026575,2]
[331905683,1720825852831,-500.0,0.00026575,2]
[331905684,1720825852841,-590.43836456,0.00026575,2]
[331905685,1720825852850,-613.41858908,0.00026575,2]
[331905686,1720825852860,-454.23606615,0.00026575,2]
[331905687,1720825852869,-500.0,0.00026575,2]
[331905688,1720825852879,-500.0,0.00026575,2]
[331905689,1720825852890,-500.0,0.00026575,2]
[331905690,1720825852902,-500.0,0.00026575,2]
[331905691,1720825852912,-500.0,0.00026575,2]
[331905692,1720825852921,-508.3,0.00026575,2]
[331905693,1720825852931,-422.21591004,0.00026575,2]
[331905694,1720825852940,-151.0,0.00026575,2]
[331905695,1720825852951,-843.63,0.00026575,2]
[331905696,1720825852962,-500.0,0.00026575,2]
[331905697,1720825852971,-208.80140146,0.00026575,2]
[331905698,1720825852980,-500.0,0.00026575,2]
[331905699,1720825852990,-500.0,0.00026575,2]
[331905700,1720825852999,-506.70019399,0.00026575,2]
[331905701,1720825853008,-500.0,0.00026575,2]
[331905702,1720825853018,-500.0,0.00026575,2]
[331905703,1720825853027,-280.21167617,0.00026575,2]
[331905704,1720825853037,-500.0,0.00026575,2]
[331905705,1720825853047,-500.0,0.00026575,2]
[331905706,1720825853056,-500.0,0.00026575,2]
[331905707,1720825853066,-315.87454827,0.00026575,2]
[331905708,1720825853075,-500.0,0.00026575,2]
[331905709,1720825853085,-500.0,0.00026575,2]
[331905710,1720825853094,-387.17671969,0.00026575,2]
[331905711,1720825853104,-602.06,0.00026575,2]
[331905712,1720825853114,-500.0,0.00026575,2]
[331905713,1720825853123,-500.0,0.00026575,2]
[331905714,1720825853133,-551.43845711,0.00026575,2]
[331905715,1720825853143,-480.95185777,0.00026575,2]
[331905716,1720825853153,-812.22,0.00026575,2]
[331905717,1720825853163,-500.0,0.00026575,2]
[331905718,1720825853172,-1109.4,0.00026575,2]
[331905719,1720825853181,-500.0,0.00026575,2]
[331905720,1720825853191,-500.0,0.00026575,2]
[331905721,1720825853201,-500.0,0.00026575,2]
[331905722,1720825853211,-500.0,0.00026575,2]
[331905723,1720825853220,-500.0,0.00026575,2]
[331905724,1720825853230,-500.0,0.00026575,2]
[331905725,1720825853240,-202.114519,0.00026575,7]
[331905726,1720825853251,-500.0,0.00026575,2]
[331905727,1720825853260,-500.0,0.00026575,2]
[331905728,1720825853270,-500.0,0.00026575,2]
[331905729,1720825853280,-1888.33,0.00026575,2]
[331905730,1720825853290,-500.0,0.00026575,2]
[331905731,1720825853299,-601.67,0.00026575,2]
[331905732,1720825853310,-500.0,0.00026575,2]
[331905733,1720825853320,-500.0,0.00026575,2]
[331905734,1720825853329,-500.0,0.00026575,2]
[331905735,1720825853339,-500.0,0.00026575,2]
[331905736,1720825853348,-500.0,0.00026575,2]
[331905737,1720825853358,-500.0,0.00026575,2]
[331905738,1720825853367,-500.0,0.00026575,2]
[331905739,1720825853376,-500.0,0.00026575,2]
[331905740,1720825853386,-500.0,0.00026575,2]
[331905741,1720825853395,-518.07,0.00026575,2]
[331905742,1720825853407,-500.0,0.00026575,2]
[331905743,1720825853417,-500.0,0.00026575,2]
[331905744,1720825853427,-220.47280318,0.00026575,2]
[331905745,1720825853437,-500.0,0.00026575,2]
[331905746,1720825853446,-837.23,0.00026575,2]
[331905747,1720825853455,-807.98,0.00026575,2]
[331905748,1720825853465,-500.0,0.00026575,2]
[331905749,1720825853475,-500.0,0.00026575,2]
[331905750,1720825853484,-500.0,0.00026575,2]
[331905751,1720825853494,-520.79,0.00026575,2]
[331905752,1720825853503,-500.0,0.00026575,2]
[331905753,1720825853513,-2287.63,0.00026575,2]
[331905754,1720825853523,-500.0,0.00026575,2]
[331905755,1720825853533,-500.0,0.00026575,2]
[331905756,1720825853543,-28518.43,0.00026575,2]
[331905757,1720825853553,-500.0,0.00026575,2]
[331905758,1720825853563,-500.0,0.00026575,2]
[331905759,1720825853572,-500.0,0.00026575,2]
[331905760,1720825853582,-500.0,0.00026575,2]
[331905761,1720825853592,-500.0,0.00026575,2]
[331905762,1720825853601,-500.0,0.00026575,2]
[331905763,1720825853610,-500.0,0.00026575,2]
[331905764,1720825853622,-3804.15,0.00026575,2]
[331905765,1720825853640,-500.0,0.00026575,2]
[331905766,1720825853650,-500.0,0.00026575,2]
[331905767,1720825853659,-500.0,0.00026575,2]
[331905768,1720825853669,-500.0,0.00026575,2]
[331905769,1720825853678,-500.0,0.00026575,2]
[331905770,1720825853687,-500.0,0.00026575,2]
[331905771,1720825853696,-3000.0,0.0002658,2]
[331905772,1720825853706,-3000.0,0.0002659,2]
[331905773,1720825853716,-1536.40782202,0.0002659,3]
[331905774,1720825853725,-3000.0,0.000266,2]
[331905775,1720825853735,-3000.0,0.0002661,2]
[331905776,1720825853744,-151.0,0.00026613,2]
[331905777,1720825853754,-151.0,0.00026613,2]
[331905778,1720825853763,-3000.0,0.0002662,2]
[331905779,1720825853772,-153.0,0.00026629,2]
[331905780,1720825853782,-153.0,0.00026629,2]
[331905781,1720825853791,-153.0,0.00026629,2]
[331905782,1720825853800,-153.0,0.00026629,2]
[331905783,1720825853809,-153.0,0.00026629,2]
[331905784,1720825853818,-153.0,0.00026629,2]
[331905785,1720825853828,-153.0,0.00026629,2]
[331905786,1720825853837,-153.0,0.00026629,2]
[331905787,1720825853848,-153.0,0.00026629,2]
[331905788,1720825853860,-153.0,0.00026629,2]
[331905789,1720825853869,-153.0,0.00026629,2]
[331905790,1720825853878,-153.0,0.00026629,2]
[331905791,1720825853888,-153.0,0.00026629,2]
[331905792,1720825853898,-153.0,0.00026629,2]
[331905793,1720825853907,-153.0,0.00026629,2]
[331905794,1720825853917,-3000.0,0.0002663,2]
[331905795,1720825853927,-3000.0,0.0002664,2]
[331905796,1720825853937,-3000.0,0.0002665,2]
[331905797,1720825853947,-3000.0,0.0002666,2]
[331905798,1720825853956,-3000.0,0.0002667,2]
[331905799,1720825853965,-3000.0,0.0002668,2]
[331905800,1720825853974,-151.0,0.0002668,7]
[331905801,1720825853983,-261.815616,0.0002668,7]
[331905802,1720825853992,-261.815616,0.0002668,7]
[331905803,1720825854002,-153.29155785,0.00026687,2]
[331905804,1720825854011,-3000.0,0.0002669,2]
[331905805,1720825854022,-3000.0,0.000267,2]
[331905806,1720825854031,-3000.0,0.0002671,2]
[331905807,1720825854040,-3000.0,0.0002672,2]
[331905808,1720825854050,-153.29155785,0.00026727,2]
[331905809,1720825854059,-659.31259948,0.00026729,2]
[331905810,1720825854068,-3000.0,0.0002673,2]
[331905811,1720825854078,-3000.0,0.0002674,2]
[331905812,1720825854087,-1536.40782202,0.0002674,3]
[331905813,1720825854097,-3000.0,0.0002675,2]
[331905814,1720825854107,-3000.0,0.0002676,2]
[331905815,1720825854116,-152.71751146,0.00026766,2]